[Event "Titled Tuesday Blitz November 07 Early 2023"]
[White "Makarian, Rudik"]
[Black "Pham, Le Thao Nguyen"]
[WhiteFideId "44105681"]
[BlackFideId "12401226"]
[WhiteElo "2953"]
[BlackElo "2523"]
[Result "1-0"]
[Round "3"]
[TimeControl "180+1"]
[Date "2023.11.07"]
[WhiteClock "0:03:01"]
[BlackClock "0:01:46"]
[Board "73"]

1. d4 {[%clk 0:03:00]}  Nf6 {[%clk 0:02:56]} 2. c4 {[%clk 0:03:01]}  c6 {[%clk 0:02:55]} 3. Nf3 {[%clk 0:03:00]}  d5 {[%clk 0:02:52]} 4. Nc3 {[%clk 0:03:01]}  a6 {[%clk 0:02:49]} 5. g3 {[%clk 0:03:01]}  dxc4 {[%clk 0:02:43]} 6. Bg2 {[%clk 0:03:02]}  b5 {[%clk 0:02:42]} 7. Ne5 {[%clk 0:03:02]}  Bb7 {[%clk 0:02:42]} 8. O-O {[%clk 0:03:03]}  e6 {[%clk 0:02:41]} 9. b3 {[%clk 0:03:04]}  b4 {[%clk 0:02:37]} 10. bxc4 {[%clk 0:03:03]}  bxc3 {[%clk 0:02:34]} 11. Rb1 {[%clk 0:03:04]}  Qc8 {[%clk 0:02:14]} 12. Qb3 {[%clk 0:03:03]}  Ra7 {[%clk 0:02:10]} 13. Qb6 {[%clk 0:03:04]}  c2 {[%clk 0:01:58]} 14. Rb3 {[%clk 0:03:03]}  Ra8 {[%clk 0:01:52]} 15. Qxb7 {[%clk 0:03:03]}  Qxb7 {[%clk 0:01:53]} 16. Rxb7 {[%clk 0:03:02]}  Bd6 {[%clk 0:01:46]} 17. Nxf7 {[%clk 0:03:01]} 1-0


[Site "https://www.chess.com"]

[Event "Titled Tuesday Blitz November 07 Early 2023"]
[White "Yeletsky, Ivan"]
[Black "HeroRubiksCube"]
[WhiteFideId "24180327"]
[WhiteElo "2946"]
[BlackElo "2521"]
[Result "1-0"]
[Round "3"]
[TimeControl "180+1"]
[Date "2023.11.07"]
[WhiteClock "0:00:56"]
[BlackClock "0:00:26"]
[Board "75"]

1. e4 {[%clk 0:02:35]}  e6 {[%clk 0:02:59]} 2. Qe2 {[%clk 0:02:33]}  c5 {[%clk 0:02:58]} 3. Nf3 {[%clk 0:02:33]}  Nc6 {[%clk 0:02:58]} 4. g3 {[%clk 0:02:34]}  g6 {[%clk 0:02:58]} 5. Bg2 {[%clk 0:02:34]}  Bg7 {[%clk 0:02:58]} 6. O-O {[%clk 0:02:34]}  Nge7 {[%clk 0:02:59]} 7. c3 {[%clk 0:02:33]}  O-O {[%clk 0:02:59]} 8. Rd1 {[%clk 0:02:34]}  d5 {[%clk 0:02:53]} 9. e5 {[%clk 0:02:32]}  a6 {[%clk 0:02:47]} 10. d4 {[%clk 0:02:32]}  Qb6 {[%clk 0:02:42]} 11. Na3 {[%clk 0:02:12]}  cxd4 {[%clk 0:02:37]} 12. cxd4 {[%clk 0:02:12]}  Bd7 {[%clk 0:02:36]} 13. h4 {[%clk 0:02:07]}  Na5 {[%clk 0:02:28]} 14. h5 {[%clk 0:02:06]}  Rac8 {[%clk 0:02:24]} 15. h6 {[%clk 0:02:02]}  Bh8 {[%clk 0:02:24]} 16. Bg5 {[%clk 0:02:02]}  Rfe8 {[%clk 0:02:05]} 17. b3 {[%clk 0:01:59]}  Bb5 {[%clk 0:02:01]} 18. Qd2 {[%clk 0:01:56]}  Nac6 {[%clk 0:01:55]} 19. Rac1 {[%clk 0:01:42]}  a5 {[%clk 0:01:43]} 20. Nxb5 {[%clk 0:01:29]}  Qxb5 {[%clk 0:01:44]} 21. Bf1 {[%clk 0:01:30]}  Qb6 {[%clk 0:01:41]} 22. Qf4 {[%clk 0:01:28]}  Qd8 {[%clk 0:01:01]} 23. g4 {[%clk 0:01:23]}  Nb8 {[%clk 0:00:44]} 24. Bb5 {[%clk 0:01:16]}  Rxc1 {[%clk 0:00:41]} 25. Rxc1 {[%clk 0:01:16]}  Nd7 {[%clk 0:00:41]} 26. Bxd7 {[%clk 0:00:59]}  Qxd7 {[%clk 0:00:42]} 27. Bf6 {[%clk 0:01:00]}  Rc8 {[%clk 0:00:41]} 28. Rxc8+ {[%clk 0:00:56]}  Nxc8 {[%clk 0:00:35]} 29. Bxh8 {[%clk 0:00:56]}  f5 {[%clk 0:00:35]} 30. exf6 {[%clk 0:00:54]}  Nd6 {[%clk 0:00:27]} 31. Ne5 {[%clk 0:00:54]}  Qc7 {[%clk 0:00:26]} 32. f7+ {[%clk 0:00:54]}  Nxf7 {[%clk 0:00:25]} 33. Qxf7+ {[%clk 0:00:52]}  Qxf7 {[%clk 0:00:25]} 34. Nxf7 {[%clk 0:00:53]}  Kxf7 {[%clk 0:00:26]} 35. g5 {[%clk 0:00:54]}  Ke7 {[%clk 0:00:26]} 36. Be5 {[%clk 0:00:55]}  Kd7 {[%clk 0:00:26]} 37. Kf1 {[%clk 0:00:56]}  b5 {[%clk 0:00:26]} 38. a4 {[%clk 0:00:56]} 1-0


[Site "https://www.chess.com"]

[Event "Titled Tuesday Blitz November 07 Early 2023"]
[White "Dushyant Sharma"]
[Black "Kovalev, Vladislav"]
[WhiteFideId "25065130"]
[BlackFideId "13504398"]
[WhiteElo "2521"]
[BlackElo "2917"]
[Result "0-1"]
[Round "3"]
[TimeControl "180+1"]
[Date "2023.11.07"]
[WhiteClock "0:00:01"]
[BlackClock "0:00:23"]
[Board "76"]

1. e4 {[%clk 0:02:58]}  e5 {[%clk 0:02:59]} 2. Nf3 {[%clk 0:02:54]}  Nc6 {[%clk 0:02:59]} 3. Nc3 {[%clk 0:02:54]}  Nf6 {[%clk 0:02:59]} 4. Bb5 {[%clk 0:02:54]}  Bb4 {[%clk 0:02:54]} 5. O-O {[%clk 0:02:54]}  Bxc3 {[%clk 0:02:52]} 6. bxc3 {[%clk 0:02:54]}  d6 {[%clk 0:02:52]} 7. d3 {[%clk 0:02:55]}  O-O {[%clk 0:02:52]} 8. Bg5 {[%clk 0:02:55]}  h6 {[%clk 0:02:52]} 9. Bh4 {[%clk 0:02:55]}  Qe7 {[%clk 0:02:50]} 10. Re1 {[%clk 0:02:55]}  Nd8 {[%clk 0:02:50]} 11. d4 {[%clk 0:02:55]}  Bg4 {[%clk 0:02:28]} 12. h3 {[%clk 0:02:55]}  Bh5 {[%clk 0:02:29]} 13. g4 {[%clk 0:02:55]}  Bg6 {[%clk 0:02:29]} 14. Bd3 {[%clk 0:02:55]}  Qe6 {[%clk 0:02:20]} 15. Bg3 {[%clk 0:02:43]}  Nd7 {[%clk 0:02:14]} 16. Nh4 {[%clk 0:02:40]}  Bh7 {[%clk 0:02:13]} 17. Nf5 {[%clk 0:02:39]}  f6 {[%clk 0:02:04]} 18. Rb1 {[%clk 0:02:13]}  b6 {[%clk 0:02:03]} 19. Qe2 {[%clk 0:02:06]}  Kh8 {[%clk 0:02:02]} 20. Qe3 {[%clk 0:01:58]}  Qe8 {[%clk 0:01:51]} 21. Kh2 {[%clk 0:01:49]}  Ne6 {[%clk 0:01:50]} 22. Bb5 {[%clk 0:01:44]}  Rd8 {[%clk 0:01:40]} 23. a4 {[%clk 0:01:28]}  a5 {[%clk 0:01:38]} 24. Rbd1 {[%clk 0:01:26]}  h5 {[%clk 0:01:25]} 25. dxe5 {[%clk 0:01:08]}  fxe5 {[%clk 0:01:22]} 26. Bh4 {[%clk 0:01:05]}  Qf7 {[%clk 0:00:57]} 27. Bxd8 {[%clk 0:01:00]}  Rxd8 {[%clk 0:00:58]} 28. Nxd6 {[%clk 0:00:49]}  cxd6 {[%clk 0:00:56]} 29. Rxd6 {[%clk 0:00:50]}  Nec5 {[%clk 0:00:53]} 30. Red1 {[%clk 0:00:49]}  Bg8 {[%clk 0:00:39]} 31. R1d2 {[%clk 0:00:28]}  Qe7 {[%clk 0:00:36]} 32. f3 {[%clk 0:00:13]}  Be6 {[%clk 0:00:36]} 33. Kg2 {[%clk 0:00:12]}  Rf8 {[%clk 0:00:36]} 34. Qf2 {[%clk 0:00:10]}  Nxe4 {[%clk 0:00:31]} 35. Rxd7 {[%clk 0:00:03]}  Bxd7 {[%clk 0:00:28]} 36. Rxd7 {[%clk 0:00:02]}  Qxd7 {[%clk 0:00:23]} 37. Qh4 {[%clk 0:00:01]} 0-1


[Site "https://www.chess.com"]

[Event "Titled Tuesday Blitz November 07 Early 2023"]
[White "Mikaelyan, Arman"]
[Black "Bilan, Danila"]
[WhiteFideId "13304852"]
[BlackFideId "24161918"]
[WhiteElo "2875"]
[BlackElo "2513"]
[Result "1-0"]
[Round "3"]
[TimeControl "180+1"]
[Date "2023.11.07"]
[WhiteClock "0:00:14"]
[BlackClock "0:00:00"]
[Board "80"]

1. d4 {[%clk 0:02:49]}  d5 {[%clk 0:02:58]} 2. Nf3 {[%clk 0:02:48]}  Nf6 {[%clk 0:02:58]} 3. c4 {[%clk 0:02:48]}  c6 {[%clk 0:02:58]} 4. Nc3 {[%clk 0:02:47]}  e6 {[%clk 0:02:58]} 5. g3 {[%clk 0:02:46]}  Ne4 {[%clk 0:02:43]} 6. Bg2 {[%clk 0:02:46]}  f5 {[%clk 0:02:42]} 7. O-O {[%clk 0:02:46]}  Bd6 {[%clk 0:02:39]} 8. Bf4 {[%clk 0:02:45]}  O-O {[%clk 0:02:36]} 9. Bxd6 {[%clk 0:02:44]}  Qxd6 {[%clk 0:02:37]} 10. Rc1 {[%clk 0:02:44]}  Nd7 {[%clk 0:02:36]} 11. c5 {[%clk 0:02:39]}  Qc7 {[%clk 0:02:18]} 12. b4 {[%clk 0:02:38]}  a6 {[%clk 0:02:16]} 13. a4 {[%clk 0:02:38]}  e5 {[%clk 0:02:15]} 14. dxe5 {[%clk 0:02:36]}  Nxe5 {[%clk 0:02:15]} 15. Nd4 {[%clk 0:02:31]}  Bd7 {[%clk 0:02:09]} 16. Nb3 {[%clk 0:01:48]}  Rae8 {[%clk 0:02:01]} 17. b5 {[%clk 0:01:45]}  axb5 {[%clk 0:01:56]} 18. axb5 {[%clk 0:01:46]}  Ng4 {[%clk 0:00:58]} 19. Qd3 {[%clk 0:01:16]}  Nexf2 {[%clk 0:00:29]} 20. Rxf2 {[%clk 0:01:14]}  Nxf2 {[%clk 0:00:29]} 21. Kxf2 {[%clk 0:01:14]}  f4 {[%clk 0:00:30]} 22. Kg1 {[%clk 0:01:07]}  Bf5 {[%clk 0:00:15]} 23. Qf3 {[%clk 0:01:04]}  Be4 {[%clk 0:00:08]} 24. Nxe4 {[%clk 0:00:59]}  dxe4 {[%clk 0:00:09]} 25. Qg4 {[%clk 0:00:59]}  Qe5 {[%clk 0:00:04]} 26. gxf4 {[%clk 0:00:51]}  Rxf4 {[%clk 0:00:02]} 27. Qg3 {[%clk 0:00:52]}  Ref8 {[%clk 0:00:03]} 28. e3 {[%clk 0:00:45]}  R4f5 {[%clk 0:00:02]} 29. Qxe5 {[%clk 0:00:46]}  Rxe5 {[%clk 0:00:03]} 30. Nd4 {[%clk 0:00:46]}  Rf6 {[%clk 0:00:02]} 31. Rc2 {[%clk 0:00:30]}  Rg5 {[%clk 0:00:02]} 32. h4 {[%clk 0:00:29]}  Rg4 {[%clk 0:00:02]} 33. h5 {[%clk 0:00:27]}  h6 {[%clk 0:00:02]} 34. Kh2 {[%clk 0:00:19]}  Rg5 {[%clk 0:00:02]} 35. Bxe4 {[%clk 0:00:18]}  Rxh5+ {[%clk 0:00:02]} 36. Kg1 {[%clk 0:00:17]}  Rg5+ {[%clk 0:00:03]} 37. Bg2 {[%clk 0:00:17]}  Re5 {[%clk 0:00:03]} 38. bxc6 {[%clk 0:00:16]}  bxc6 {[%clk 0:00:03]} 39. Rc3 {[%clk 0:00:17]}  Rg5 {[%clk 0:00:02]} 40. Rc2 {[%clk 0:00:16]}  h5 {[%clk 0:00:03]} 41. Kh2 {[%clk 0:00:16]}  Re5 {[%clk 0:00:02]} 42. Nxc6 {[%clk 0:00:14]}  Rxe3 {[%clk 0:00:00]} 43. Nd4 {[%clk 0:00:14]} 1-0


[Site "https://www.chess.com"]

[Event "Titled Tuesday Blitz November 07 Early 2023"]
[White "Kravtsiv, Martyn"]
[Black "arenal72"]
[WhiteFideId "14113147"]
[WhiteElo "2856"]
[BlackElo "2512"]
[Result "1-0"]
[Round "3"]
[TimeControl "180+1"]
[Date "2023.11.07"]
[WhiteClock "0:00:15"]
[BlackClock "0:00:09"]
[Board "81"]

1. Nf3 {[%clk 0:03:00]}  c5 {[%clk 0:02:56]} 2. g3 {[%clk 0:03:01]}  Nc6 {[%clk 0:02:53]} 3. Bg2 {[%clk 0:03:02]}  e5 {[%clk 0:02:54]} 4. c4 {[%clk 0:02:57]}  g6 {[%clk 0:02:52]} 5. Nc3 {[%clk 0:02:56]}  Bg7 {[%clk 0:02:52]} 6. d3 {[%clk 0:02:56]}  Nge7 {[%clk 0:02:51]} 7. h4 {[%clk 0:02:56]}  h6 {[%clk 0:02:48]} 8. a3 {[%clk 0:02:46]}  O-O {[%clk 0:02:40]} 9. Bd2 {[%clk 0:02:44]}  d6 {[%clk 0:02:39]} 10. Qc1 {[%clk 0:02:40]}  Kh7 {[%clk 0:02:37]} 11. h5 {[%clk 0:02:33]}  g5 {[%clk 0:02:36]} 12. Ne4 {[%clk 0:02:26]}  g4 {[%clk 0:02:28]} 13. Nfg5+ {[%clk 0:02:11]}  Kg8 {[%clk 0:02:18]} 14. f3 {[%clk 0:02:02]}  f5 {[%clk 0:02:14]} 15. Nc3 {[%clk 0:01:55]}  Nd4 {[%clk 0:02:07]} 16. fxg4 {[%clk 0:01:39]}  Nb3 {[%clk 0:01:35]} 17. Qd1 {[%clk 0:01:38]}  Nxd2 {[%clk 0:01:35]} 18. Qxd2 {[%clk 0:01:38]}  hxg5 {[%clk 0:01:33]} 19. Qxg5 {[%clk 0:01:38]}  Kh7 {[%clk 0:01:32]} 20. h6 {[%clk 0:01:30]}  Bf6 {[%clk 0:01:31]} 21. Qh5 {[%clk 0:01:23]}  Qe8 {[%clk 0:01:30]} 22. gxf5 {[%clk 0:01:14]}  Qxh5 {[%clk 0:01:16]} 23. Rxh5 {[%clk 0:01:15]}  Bxf5 {[%clk 0:01:16]} 24. Be4 {[%clk 0:00:56]}  Bxe4 {[%clk 0:01:05]} 25. Nxe4 {[%clk 0:00:57]}  Rad8 {[%clk 0:00:57]} 26. g4 {[%clk 0:00:54]}  Ng6 {[%clk 0:00:48]} 27. Kd2 {[%clk 0:00:49]}  Be7 {[%clk 0:00:46]} 28. Rah1 {[%clk 0:00:11]}  Nf4 {[%clk 0:00:44]} 29. Rf5 {[%clk 0:00:11]}  Rxf5 {[%clk 0:00:41]} 30. gxf5 {[%clk 0:00:11]}  Rf8 {[%clk 0:00:41]} 31. f6 {[%clk 0:00:12]}  Bxf6 {[%clk 0:00:40]} 32. Nxd6 {[%clk 0:00:12]}  b6 {[%clk 0:00:36]} 33. Ne4 {[%clk 0:00:12]}  Be7 {[%clk 0:00:24]} 34. e3 {[%clk 0:00:13]}  Ng6 {[%clk 0:00:22]} 35. Ke2 {[%clk 0:00:13]}  Rf5 {[%clk 0:00:19]} 36. b4 {[%clk 0:00:10]}  cxb4 {[%clk 0:00:16]} 37. axb4 {[%clk 0:00:11]}  Bxb4 {[%clk 0:00:16]} 38. d4 {[%clk 0:00:12]}  exd4 {[%clk 0:00:14]} 39. exd4 {[%clk 0:00:13]}  Be7 {[%clk 0:00:11]} 40. d5 {[%clk 0:00:13]}  a5 {[%clk 0:00:11]} 41. Ke3 {[%clk 0:00:12]}  Ne5 {[%clk 0:00:07]} 42. Kd4 {[%clk 0:00:10]}  Nf3+ {[%clk 0:00:06]} 43. Ke3 {[%clk 0:00:10]}  Ng5 {[%clk 0:00:07]} 44. d6 {[%clk 0:00:10]}  Bd8 {[%clk 0:00:05]} 45. Kd4 {[%clk 0:00:09]}  Nxe4 {[%clk 0:00:03]} 46. Kxe4 {[%clk 0:00:10]}  Rf6 {[%clk 0:00:03]} 47. Kd5 {[%clk 0:00:10]}  Rxh6 {[%clk 0:00:03]} 48. Re1 {[%clk 0:00:10]}  a4 {[%clk 0:00:03]} 49. Re8 {[%clk 0:00:11]}  Bf6 {[%clk 0:00:03]} 50. Ra8 {[%clk 0:00:10]}  Rh5+ {[%clk 0:00:02]} 51. Ke6 {[%clk 0:00:10]}  Bc3 {[%clk 0:00:01]} 52. Rxa4 {[%clk 0:00:10]}  Re5+ {[%clk 0:00:02]} 53. Kf7 {[%clk 0:00:10]}  Rf5+ {[%clk 0:00:01]} 54. Ke6 {[%clk 0:00:10]}  Re5+ {[%clk 0:00:02]} 55. Kf7 {[%clk 0:00:09]}  Rc5 {[%clk 0:00:02]} 56. d7 {[%clk 0:00:09]}  Rf5+ {[%clk 0:00:02]} 57. Ke6 {[%clk 0:00:09]}  Re5+ {[%clk 0:00:02]} 58. Kd6 {[%clk 0:00:09]}  Re1 {[%clk 0:00:02]} 59. d8=Q {[%clk 0:00:09]}  Rd1+ {[%clk 0:00:02]} 60. Kc7 {[%clk 0:00:10]}  Rxd8 {[%clk 0:00:03]} 61. Kxd8 {[%clk 0:00:10]}  Bd4 {[%clk 0:00:04]} 62. Kd7 {[%clk 0:00:10]}  Kg6 {[%clk 0:00:04]} 63. Kc6 {[%clk 0:00:11]}  Kf6 {[%clk 0:00:05]} 64. Ra6 {[%clk 0:00:11]}  Ke7 {[%clk 0:00:05]} 65. Rxb6 {[%clk 0:00:11]}  Bxb6 {[%clk 0:00:06]} 66. Kxb6 {[%clk 0:00:12]}  Kd7 {[%clk 0:00:07]} 67. c5 {[%clk 0:00:13]}  Kc8 {[%clk 0:00:07]} 68. Kc6 {[%clk 0:00:13]}  Kb8 {[%clk 0:00:08]} 69. Kd7 {[%clk 0:00:14]}  Kb7 {[%clk 0:00:09]} 70. c6+ {[%clk 0:00:14]}  Kb6 {[%clk 0:00:09]} 71. c7 {[%clk 0:00:15]} 1-0


[Site "https://www.chess.com"]

[Event "Titled Tuesday Blitz November 07 Early 2023"]
[White "Golizadeh, Asghar"]
[Black "LouieKov2022"]
[WhiteFideId "12505269"]
[WhiteElo "2855"]
[BlackElo "2509"]
[Result "1/2-1/2"]
[Round "3"]
[TimeControl "180+1"]
[Date "2023.11.07"]
[WhiteClock "0:00:23"]
[BlackClock "0:00:20"]
[Board "82"]

1. e4 {[%clk 0:02:56]}  c5 {[%clk 0:02:59]} 2. Nc3 {[%clk 0:02:56]}  d6 {[%clk 0:02:59]} 3. f4 {[%clk 0:02:57]}  g6 {[%clk 0:02:59]} 4. Nf3 {[%clk 0:02:57]}  Bg7 {[%clk 0:03:00]} 5. Bb5+ {[%clk 0:02:58]}  Bd7 {[%clk 0:02:59]} 6. Bc4 {[%clk 0:02:58]}  Nc6 {[%clk 0:03:00]} 7. O-O {[%clk 0:02:58]}  Nd4 {[%clk 0:02:56]} 8. d3 {[%clk 0:02:55]}  e6 {[%clk 0:02:54]} 9. Nxd4 {[%clk 0:02:49]}  Bxd4+ {[%clk 0:02:53]} 10. Kh1 {[%clk 0:02:49]}  Ne7 {[%clk 0:02:54]} 11. e5 {[%clk 0:02:47]}  Bxc3 {[%clk 0:02:31]} 12. bxc3 {[%clk 0:02:45]}  d5 {[%clk 0:02:30]} 13. Bb3 {[%clk 0:02:45]}  a5 {[%clk 0:02:30]} 14. a4 {[%clk 0:02:44]}  h5 {[%clk 0:02:28]} 15. Be3 {[%clk 0:02:32]}  Qc7 {[%clk 0:02:22]} 16. Bf2 {[%clk 0:02:26]}  Nf5 {[%clk 0:02:06]} 17. Rb1 {[%clk 0:02:12]}  c4 {[%clk 0:01:56]} 18. dxc4 {[%clk 0:02:05]}  dxc4 {[%clk 0:01:57]} 19. Ba2 {[%clk 0:02:00]}  Bxa4 {[%clk 0:01:57]} 20. Qe2 {[%clk 0:01:48]}  b5 {[%clk 0:01:50]} 21. Kg1 {[%clk 0:01:11]}  O-O {[%clk 0:01:48]} 22. h3 {[%clk 0:01:10]}  h4 {[%clk 0:01:34]} 23. Rbc1 {[%clk 0:01:02]}  Rfd8 {[%clk 0:01:31]} 24. Rfd1 {[%clk 0:00:48]}  Rxd1+ {[%clk 0:01:23]} 25. Rxd1 {[%clk 0:00:49]}  Rd8 {[%clk 0:01:23]} 26. Rd2 {[%clk 0:00:49]}  Rd7 {[%clk 0:01:04]} 27. Qd1 {[%clk 0:00:46]}  Rxd2 {[%clk 0:01:01]} 28. Qxd2 {[%clk 0:00:47]}  b4 {[%clk 0:00:49]} 29. cxb4 {[%clk 0:00:45]}  c3 {[%clk 0:00:50]} 30. Qd3 {[%clk 0:00:26]}  axb4 {[%clk 0:00:50]} 31. Kh2 {[%clk 0:00:25]}  Kg7 {[%clk 0:00:41]} 32. Bb1 {[%clk 0:00:23]}  Qb7 {[%clk 0:00:33]} 33. Qd8 {[%clk 0:00:22]}  Bc6 {[%clk 0:00:30]} 34. Bxh4 {[%clk 0:00:20]}  Nxh4 {[%clk 0:00:29]} 35. Qf6+ {[%clk 0:00:21]}  Kg8 {[%clk 0:00:28]} 36. Qd8+ {[%clk 0:00:22]}  Kg7 {[%clk 0:00:27]} 37. Qf6+ {[%clk 0:00:22]}  Kg8 {[%clk 0:00:20]} 38. Qd8+ {[%clk 0:00:23]}  Kg7 {[%clk 0:00:20]} 1/2-1/2


[Site "https://www.chess.com"]

[Event "Titled Tuesday Blitz November 07 Early 2023"]
[White "Nenezic, Marko"]
[Black "Khater, Sherif"]
[WhiteFideId "912123"]
[BlackFideId "2034280"]
[WhiteElo "2853"]
[BlackElo "2506"]
[Result "1-0"]
[Round "3"]
[TimeControl "180+1"]
[Date "2023.11.07"]
[WhiteClock "0:00:44"]
[BlackClock "0:00:21"]
[Board "83"]

1. Nf3 {[%clk 0:03:00]}  Nf6 {[%clk 0:02:58]} 2. c4 {[%clk 0:03:00]}  c5 {[%clk 0:02:57]} 3. Nc3 {[%clk 0:03:00]}  Nc6 {[%clk 0:02:57]} 4. d4 {[%clk 0:03:00]}  cxd4 {[%clk 0:02:55]} 5. Nxd4 {[%clk 0:03:01]}  g6 {[%clk 0:02:56]} 6. e4 {[%clk 0:03:01]}  d6 {[%clk 0:02:56]} 7. Be2 {[%clk 0:03:00]}  Bg7 {[%clk 0:02:56]} 8. Be3 {[%clk 0:03:00]}  O-O {[%clk 0:02:57]} 9. O-O {[%clk 0:03:01]}  Bd7 {[%clk 0:02:55]} 10. Nc2 {[%clk 0:03:01]}  a6 {[%clk 0:02:53]} 11. f3 {[%clk 0:03:01]}  Rc8 {[%clk 0:02:52]} 12. Qd2 {[%clk 0:02:57]}  Ne5 {[%clk 0:02:52]} 13. b3 {[%clk 0:02:47]}  Qc7 {[%clk 0:02:35]} 14. Nb4 {[%clk 0:02:38]}  Qb8 {[%clk 0:02:31]} 15. Nbd5 {[%clk 0:02:36]}  Nxd5 {[%clk 0:02:31]} 16. Nxd5 {[%clk 0:02:37]}  Rfe8 {[%clk 0:02:29]} 17. Nb6 {[%clk 0:02:32]}  Rcd8 {[%clk 0:02:24]} 18. Rad1 {[%clk 0:02:27]}  Bc6 {[%clk 0:02:23]} 19. Bg5 {[%clk 0:02:21]}  Qa7 {[%clk 0:02:12]} 20. Be3 {[%clk 0:02:21]}  Qb8 {[%clk 0:02:12]} 21. Kh1 {[%clk 0:02:15]}  Nd7 {[%clk 0:02:11]} 22. Nd5 {[%clk 0:02:15]}  Nf6 {[%clk 0:02:08]} 23. Nb4 {[%clk 0:02:10]}  Bd7 {[%clk 0:02:01]} 24. a4 {[%clk 0:02:09]}  a5 {[%clk 0:01:48]} 25. Na2 {[%clk 0:02:05]}  b6 {[%clk 0:01:46]} 26. Nc3 {[%clk 0:01:52]}  Bc6 {[%clk 0:01:47]} 27. Bd3 {[%clk 0:01:49]}  Nd7 {[%clk 0:01:46]} 28. Bc2 {[%clk 0:01:47]}  Nc5 {[%clk 0:01:46]} 29. h4 {[%clk 0:01:40]}  h5 {[%clk 0:01:39]} 30. Bg5 {[%clk 0:01:40]}  Ne6 {[%clk 0:01:37]} 31. Be3 {[%clk 0:01:39]}  Nc5 {[%clk 0:01:36]} 32. Rfe1 {[%clk 0:01:36]}  Bf6 {[%clk 0:01:31]} 33. Bf2 {[%clk 0:01:35]}  Kg7 {[%clk 0:01:24]} 34. f4 {[%clk 0:01:32]}  e5 {[%clk 0:01:04]} 35. f5 {[%clk 0:01:23]}  Qc7 {[%clk 0:01:00]} 36. fxg6 {[%clk 0:01:11]}  fxg6 {[%clk 0:00:59]} 37. Rf1 {[%clk 0:01:07]}  Rf8 {[%clk 0:00:59]} 38. Qe3 {[%clk 0:01:01]}  Qe7 {[%clk 0:00:50]} 39. Qg3 {[%clk 0:01:00]}  Ne6 {[%clk 0:00:47]} 40. Nd5 {[%clk 0:01:00]}  Bxd5 {[%clk 0:00:46]} 41. exd5 {[%clk 0:01:00]}  Nd4 {[%clk 0:00:47]} 42. Qxg6+ {[%clk 0:00:54]}  Kh8 {[%clk 0:00:46]} 43. Qxh5+ {[%clk 0:00:54]}  Kg8 {[%clk 0:00:40]} 44. Bxd4 {[%clk 0:00:46]}  exd4 {[%clk 0:00:40]} 45. Bf5 {[%clk 0:00:47]}  Bxh4 {[%clk 0:00:26]} 46. Rxd4 {[%clk 0:00:45]}  Bf6 {[%clk 0:00:21]} 47. Rg4+ {[%clk 0:00:44]} 1-0


[Site "https://www.chess.com"]

[Event "Titled Tuesday Blitz November 07 Early 2023"]
[White "Rama, Tejas"]
[Black "Szpar, Milosz"]
[WhiteFideId "30907381"]
[BlackFideId "1184989"]
[WhiteElo "2502"]
[BlackElo "2800"]
[Result "0-1"]
[Round "3"]
[TimeControl "180+1"]
[Date "2023.11.07"]
[WhiteClock "0:00:04"]
[BlackClock "0:00:24"]
[Board "85"]

1. d4 {[%clk 0:03:00]}  Nf6 {[%clk 0:02:59]} 2. c4 {[%clk 0:03:01]}  c5 {[%clk 0:02:59]} 3. d5 {[%clk 0:03:01]}  e6 {[%clk 0:02:59]} 4. Nc3 {[%clk 0:03:01]}  exd5 {[%clk 0:03:00]} 5. cxd5 {[%clk 0:03:02]}  d6 {[%clk 0:03:01]} 6. Nf3 {[%clk 0:03:03]}  g6 {[%clk 0:03:01]} 7. Nd2 {[%clk 0:03:03]}  Bg7 {[%clk 0:03:01]} 8. e4 {[%clk 0:03:03]}  O-O {[%clk 0:03:01]} 9. Be2 {[%clk 0:03:04]}  Nbd7 {[%clk 0:03:01]} 10. O-O {[%clk 0:03:04]}  Re8 {[%clk 0:03:02]} 11. a4 {[%clk 0:03:03]}  g5 {[%clk 0:03:02]} 12. Nc4 {[%clk 0:02:59]}  Nxe4 {[%clk 0:02:59]} 13. Nxe4 {[%clk 0:02:59]}  Rxe4 {[%clk 0:03:00]} 14. Nxd6 {[%clk 0:02:59]}  Rd4 {[%clk 0:03:00]} 15. Qc2 {[%clk 0:02:58]}  Nb6 {[%clk 0:02:23]} 16. Nxc8 {[%clk 0:02:38]}  Rxc8 {[%clk 0:02:23]} 17. Be3 {[%clk 0:02:36]}  Rb4 {[%clk 0:01:59]} 18. Qf5 {[%clk 0:01:19]}  Qxd5 {[%clk 0:01:57]} 19. Qxg5 {[%clk 0:01:05]}  Qxg5 {[%clk 0:01:56]} 20. Bxg5 {[%clk 0:01:05]}  Bxb2 {[%clk 0:01:56]} 21. Ra2 {[%clk 0:01:02]}  Nxa4 {[%clk 0:01:21]} 22. Bd1 {[%clk 0:00:39]}  Nc3 {[%clk 0:01:10]} 23. Rxa7 {[%clk 0:00:39]}  Nxd1 {[%clk 0:01:02]} 24. Rxd1 {[%clk 0:00:39]}  c4 {[%clk 0:00:55]} 25. Ra5 {[%clk 0:00:11]}  c3 {[%clk 0:00:38]} 26. Rf1 {[%clk 0:00:07]}  c2 {[%clk 0:00:35]} 27. Ra2 {[%clk 0:00:04]}  c1=Q {[%clk 0:00:29]} 28. Bxc1 {[%clk 0:00:05]}  Rxc1 {[%clk 0:00:26]} 29. Rxc1 {[%clk 0:00:05]}  Bxc1 {[%clk 0:00:27]} 30. g3 {[%clk 0:00:05]}  Bh6 {[%clk 0:00:25]} 31. Kg2 {[%clk 0:00:06]}  Bf8 {[%clk 0:00:25]} 32. Kf3 {[%clk 0:00:06]}  Kg7 {[%clk 0:00:26]} 33. h4 {[%clk 0:00:06]}  h5 {[%clk 0:00:25]} 34. Ra5 {[%clk 0:00:04]}  b5 {[%clk 0:00:24]} 0-1


[Site "https://www.chess.com"]